Cogmind - Beta 12 @@@ ROGUE MODE // 2023.05.05 @ 01:04:21 Player: Mr Goldstein Result: Destroyed by H-61 Shepherd with Heavy Assault Cannon Performance ------------- Evolutions (4) 2000 Regions Visited (11) 2200 Robots Destroyed (15) 75 Value Destroyed (176) 176 Prototype IDs (23) 460 Alien Tech Used (0) 0 Bonus (380) 380 TOTAL SCORE: 5291 Bonus ------- Follower Combat Kills 80 Aligned with FarCom 300 Cogmind --------- Core Integrity 0/850 Matter 292/300 Energy 99/100 System Corruption 1% Temperature Cool (0) Movement Core (50) Location -6/Hub_04(d) Parts ------- > --- POWER (2) -------- (None) > --- PROPULSION (5) --- Gravmag Array > --- UTILITY (5) ------ Advanced Signal Interpreter Hacking Suite > --- WEAPON (3) ------- Maul > --- INVENTORY (5) ---- Light Angular Momentum Engine Improved Sensor Array Hardened Light Armor Plating Hardened Light Armor Plating Powered Hammer Peak State ------------ > --- POWER ------------ Deuterium Engine > --- PROPULSION ------- Cesium-ion Thruster Flying Fortress v7 > --- UTILITY ---------- Large Storage Unit Advanced Signal Interpreter Hardened Light Armor Plating Hacking Suite > --- WEAPON ----------- Maul Powered Hammer > --- INVENTORY -------- Light Angular Momentum Engine VTOL Module VTOL Module VTOL Module VTOL Module Improved Sensor Array Hardened Light Armor Plating Hardened Light Armor Plating [Rating: 57] Favorites ----------- Power Deuterium Engine Engine Deuterium Engine Propulsion Light Treads Treads Light Treads Hover Unit Gravmag Array Flight Unit Flying Fortress v7 Utility Large Storage Unit Device System Restoration Module Storage Large Storage Unit Processor Advanced Signal Interpreter Hackware Hacking Suite Protection Hardened Light Armor Plating Weapon Maul Launcher Rocket Launcher Impact Weapon Maul Build | -11 -10 -10 -10 -9 -8 -7 -6 -6 -6 -6 -6 ------- Run | Jun Mat Min Exi Min Mat Fac Fac Ext Cet Arc Hub Slots Evolved 8 | . . . . . 4 2 2 . . . . Power 1 | . . . . . 1 . . . . . . Propulsion 3 | . . . . . 2 1 . . . . . Utility 3 | . . . . . . 1 2 . . . . Weapon 1 | . . . . . 1 . . . . . . Parts Attached 24 | 2 . 4 2 . 2 6 1 6 . . 1 Power 1 | . . . . . . 1 . . . . . Engine 1 | . . . . . . 1 . . . . . Core . | . . . . . . . . . . . . Reactor . | . . . . . . . . . . . . Propulsion 9 | 2 . . . . 1 1 . 4 . . 1 Treads 2 | 2 . . . . . . . . . . . Leg . | . . . . . . . . . . . . Wheel . | . . . . . . . . . . . . Hover 1 | . . . . . . . . . . . 1 Flight 6 | . . . . . 1 1 . 4 . . . Utility 6 | . . 1 . . 1 3 1 . . . . Device 1 | . . . . . . 1 . . . . . Storage 1 | . . . . . 1 . . . . . . Processor 1 | . . . . . . . 1 . . . . Hackware 1 | . . . . . . 1 . . . . . Protection 2 | . . 1 . . . 1 . . . . . Artifact . | . . . . . . . . . . . . Weapon 8 | . . 3 2 . . 1 . 2 . . . Energy Gun . | . . . . . . . . . . . . Energy Cannon . | . . . . . . . . . . . . Ballistic Gun . | . . . . . . . . . . . . Ballistic Cannon . | . . . . . . . . . . . . Launcher 5 | . . 3 2 . . . . . . . . Special Weapon . | . . . . . . . . . . . . Impact Weapon 3 | . . . . . . 1 . 2 . . . Slashing Weapon . | . . . . . . . . . . . . Piercing Weapon . | . . . . . . . . . . . . Special Melee Weapon . | . . . . . . . . . . . . Unidentified Prototypes . | . . . . . . . . . . . . Parts Lost 11 | . . 2 . . 1 . . 1 5 2 . Power 1 | . . . . . . . . . 1 . . Propulsion 7 | . . 1 . . . . . 1 3 2 . Utility 2 | . . 1 . . . . . . 1 . . Weapon 1 | . . . . . 1 . . . . . . Highest Loss Streak 8 | . . 1 . . 1 . . 1 6 8 . To Critical Strikes . | . . . . . . . . . . . . Average Slot Usage (%) 35 | . 28 33 18 28 27 31 52 57 51 26 20 Engine 1 | . . . . . . 2 6 6 2 . . Treads 8 | . 28 28 14 14 . . . . . . . Flight 8 | . . . . . 9 15 13 13 26 6 . Storage 3 | . . . . . 9 7 6 6 . . . Processor 1 | . . . . . . . 5 6 6 6 6 Hackware 2 | . . . . . . 1 6 6 6 6 6 Protection 2 | . . 4 . . . . 6 6 2 . . Launcher 2 | . . 1 4 14 9 . . . . . . Impact Weapon 3 | . . . . . . 3 6 10 6 6 6 Naked Turns . | . . . . . . . . . . . . Heaviest Build 40 | . . 4 4 4 24 37 37 40 17 3 3 Greatest Support 55 | 3 3 3 3 3 50 55 55 55 21 4 3 Greatest Overweight (x) 1 | . . 1 1 1 . . . . . . . Average Overweight (x) . | . . . . 1 . . . . . . . Largest Inventory Capacity 15 | 5 5 5 5 5 15 15 15 15 5 5 5 Average Capacity 10 | 5 5 5 5 5 14 15 15 14 5 5 5 Most Carried 9 | . 2 5 5 5 5 5 6 9 5 5 5 Average Carried 3 | . . 3 4 5 . 1 5 6 5 5 5 Final Capacity 15 | 5 5 5 5 5 15 15 15 5 5 5 5 Final Carried 6 | . 2 5 5 5 1 5 6 5 5 5 5 Class Distribution -------------------- 95% | Mutant 4% | Sprinter Dominant Class ---------------- Mutant | -10/Materials Mutant | -10/Mines Mutant | -10/Exiles Mutant | -9/Mines Mutant | -8/Materials Mutant | -7/Factory Mutant | -6/Factory Mutant | -6/Extension Sprinter | -6/Cetus Mutant | -6/Archives Mutant | -6/Hub_04(d) Resources | -11 -10 -10 -10 -9 -8 -7 -6 -6 -6 -6 -6 ----------- Run | Jun Mat Min Exi Min Mat Fac Fac Ext Cet Arc Hub Matter Collected 503 | 208 . 106 . . . . . 162 25 . 2 Remotely . | . . . . . . . . . . . . Salvage Created 106 | . . 83 . . 23 . . . . . . Parts 24 | . . 17 . . 7 . . . . . . Haulers Intercepted . | . . . . . . . . . . . . Recyclers Shooed . | . . . . . . . . . . . . Parts Field Recycled . | . . . . . . . . . . . . Retrieved Matter . | . . . . . . . . . . . . Parts Self-Destructed . | . . . . . . . . . . . . Prevented . | . . . . . . . . . . . . Kills | -11 -10 -10 -10 -9 -8 -7 -6 -6 -6 -6 -6 ------- Run | Jun Mat Min Exi Min Mat Fac Fac Ext Cet Arc Hub Combat Hostiles Destroyed 12 | . . 9 . . 3 . . . . . . AOE 12 | . . 9 . . 3 . . . . . . Classes Destroyed 3 | . . 2 . . 1 . . . . . . Builder 2 | . . 2 . . . . . . . . . Operator 1 | . . . . . 1 . . . . . . Swarmer 12 | . . 9 . . 3 . . . . . . Best Kill Streak 5 | . . 5 . . 4 . . . . . . Combat Bots Only 3 | . . 3 . . 3 . . . . . . Max Kills in Single Turn 3 | . . 3 . . 3 . . . . . . Gunslinging . | . . . . . . . . . . . . Exploded 3 | . . 3 . . 3 . . . . . . Melee . | . . . . . . . . . . . . Uniques/NPCs Destroyed . | . . . . . . . . . . . . Combat | -11 -10 -10 -10 -9 -8 -7 -6 -6 -6 -6 -6 -------- Run | Jun Mat Min Exi Min Mat Fac Fac Ext Cet Arc Hub Damage Taken 2926 | . 38 479 . . 522 211 131 521 331 392 301 Core 1204 | . . 179 . . 78 94 51 56 150 295 301 Absorbed by Shields . | . . . . . . . . . . . . Redirected to Shielding 46 | . . 46 . . . . . . . . . Core Remaining (%) 74 | 100 . . . 28 85 86 . . . . . Volleys Fired 11 | . . 9 . . 2 . . . . . . Largest 1 | . . 1 . . 1 . . . . . . Hottest 33 | . . 33 . . 33 . . . . . . Shots Fired 11 | . . 9 . . 2 . . . . . . Gun . | . . . . . . . . . . . . Cannon . | . . . . . . . . . . . . Launcher 11 | . . 9 . . 2 . . . . . . Special . | . . . . . . . . . . . . Kinetic . | . . . . . . . . . . . . Thermal . | . . . . . . . . . . . . Explosive 11 | . . 9 . . 2 . . . . . . Electromagnetic . | . . . . . . . . . . . . Robot Hit Streak 2 | . . 1 . . 2 . . . . . . Robot Miss Streak 3 | . . 3 . . . . . . . . . Penetration Max . | . . . . . . . . . . . . Secondary Targets . | . . . . . . . . . . . . Shots Hit Robots 4 | . . 2 . . 1 . . 1 . . . Core Hits 13 | . . 10 . . 3 . . . . . . Critical Kills . | . . . . . . . . . . . . Critical Parts Destroyed . | . . . . . . . . . . . . Critical Strikes . | . . . . . . . . . . . . Melee Attacks 12 | . . . . . . 6 . 6 . . . Impact 12 | . . . . . . 6 . 6 . . . Slashing . | . . . . . . . . . . . . Piercing . | . . . . . . . . . . . . Sneak Attacks . | . . . . . . . . . . . . Combat Hostiles . | . . . . . . . . . . . . Follow-up Attacks . | . . . . . . . . . . . . Damage Inflicted 1072 | . 11 831 . . 197 . . 33 . . . Guns . | . . . . . . . . . . . . Cannons . | . . . . . . . . . . . . Explosions 998 | . . 801 . . 197 . . . . . . Melee 33 | . . . . . . . . 33 . . . Ramming 41 | . 11 30 . . . . . . . . . Kinetic . | . . . . . . . . . . . . Thermal . | . . . . . . . . . . . . Explosive 998 | . . 801 . . 197 . . . . . . Electromagnetic . | . . . . . . . . . . . . Impact 33 | . . . . . . . . 33 . . . Slashing . | . . . . . . . . . . . . Piercing . | . . . . . . . . . . . . Highest Corruption 1 | . . . . . . . . 1 1 1 1 Average Corruption 1 | . . . . . . . . 1 1 1 1 Corruption Purged . | . . . . . . . . . . . . Corruption Blocked . | . . . . . . . . . . . . Effects 1 | . . . . . . . . . . . 1 Heat Flow Errors 1 | . . . . . . . . . . . 1 Overload Shots . | . . . . . . . . . . . . Overflow Damage 33 | . . 17 . . 16 . . . . . . Projectiles . | . . . . . . . . . . . . Explosions 33 | . . 17 . . 16 . . . . . . Melee . | . . . . . . . . . . . . Knockbacks . | . . . . . . . . . . . . Impact . | . . . . . . . . . . . . Kinetic . | . . . . . . . . . . . . Secondary . | . . . . . . . . . . . . Self-Inflicted Damage 105 | . 5 100 . . . . . . . . . Shots 3 | . . 3 . . . . . . . . . Rammed 6 | . 1 5 . . . . . . . . . Targets Rammed 6 | . 1 5 . . . . . . . . . Kicked . | . . . . . . . . . . . . Crushed . | . . . . . . . . . . . . Highest Temperature 115 | . . 7 . . 8 . 5 20 10 . 115 Average Temperature 19 | . . 7 . . 6 . 5 8 4 . 59 Received Heat Transfer 447 | . 21 18 . . 54 30 39 141 63 81 . Siege Activations . | . . . . . . . . . . . . Robots Corrupted . | . . . . . . . . . . . . Combat Hostiles . | . . . . . . . . . . . . Parts Fried . | . . . . . . . . . . . . Impact Corruptions . | . . . . . . . . . . . . Robots Melted . | . . . . . . . . . . . . Combat Hostiles . | . . . . . . . . . . . . Parts Melted . | . . . . . . . . . . . . Heat Transferred . | . . . . . . . . . . . . Parts Sabotaged . | . . . . . . . . . . . . Parts Stolen . | . . . . . . . . . . . . Parts Stripped . | . . . . . . . . . . . . Power Chain Reactions . | . . . . . . . . . . . . Missiles Intercepted . | . . . . . . . . . . . . Alert | -11 -10 -10 -10 -9 -8 -7 -6 -6 -6 -6 -6 ------- Run | Jun Mat Min Exi Min Mat Fac Fac Ext Cet Arc Hub Peak Influence 427 | . 31 357 . 15 180 427 325 359 200 143 88 Initial 208 | . . 12 . . 5 77 208 158 200 63 46 Average 170 | . 23 195 . 1 91 203 235 250 177 112 66 Maximum Alert Level 2 | . . 1 . . . 2 1 1 1 . . Low Security (%) 61 | 100 100 41 . 100 100 69 . 39 73 100 100 Level 1 37 | . . 58 . . . 28 100 60 26 . . Level 2 . | . . . . . . 1 . . . . . Level 3 . | . . . . . . . . . . . . Level 4 . | . . . . . . . . . . . . Level 5 . | . . . . . . . . . . . . High Security . | . . . . . . . . . . . . Max Security . | . . . . . . . . . . . . Squads Dispatched 15 | . 1 . . . 2 6 . 3 . . 3 Investigation 13 | . 1 . . . 2 5 . 3 . . 2 Extermination 1 | . . . . . . 1 . . . . . Reinforcement 1 | . . . . . . . . . . . 1 Assault . | . . . . . . . . . . . . Garrison . | . . . . . . . . . . . . Intercept . | . . . . . . . . . . . . Searches Triggered . | . . . . . . . . . . . . Construction Impeded . | . . . . . . . . . . . . Haulers Reinforced . | . . . . . . . . . . . . Active Scanning Responses . | . . . . . . . . . . . . Cargo Convoy Interrupts . | . . . . . . . . . . . . Stealth | -11 -10 -10 -10 -9 -8 -7 -6 -6 -6 -6 -6 --------- Run | Jun Mat Min Exi Min Mat Fac Fac Ext Cet Arc Hub Distress Signals 10 | . 1 . . . 3 1 1 2 2 . . Communications Jammed . | . . . . . . . . . . . . Distress Signals . | . . . . . . . . . . . . Times Spotted 96 | . 3 18 . 2 13 12 12 19 10 4 3 Peak Tracking Total 10 | . 3 7 . 2 8 10 9 9 9 4 2 Tactical Retreats 10 | . . 1 . 1 . 5 1 2 . . . Traps | -11 -10 -10 -10 -9 -8 -7 -6 -6 -6 -6 -6 ------- Run | Jun Mat Min Exi Min Mat Fac Fac Ext Cet Arc Hub Traps Triggered . | . . . . . . . . . . . . Indirectly . | . . . . . . . . . . . . Trap Hack Attempts . | . . . . . . . . . . . . Triggered . | . . . . . . . . . . . . Disarmed . | . . . . . . . . . . . . Reprogrammed . | . . . . . . . . . . . . Reused . | . . . . . . . . . . . . Traps Extracted . | . . . . . . . . . . . . Installed . | . . . . . . . . . . . . Triggered . | . . . . . . . . . . . . Machines | -11 -10 -10 -10 -9 -8 -7 -6 -6 -6 -6 -6 ---------- Run | Jun Mat Min Exi Min Mat Fac Fac Ext Cet Arc Hub Machines Disabled 3 | . . 2 . . . . . 1 . . . Max in Single Turn 1 | . . 1 . . . . . 1 . . . Machines Repaired . | . . . . . . . . . . . . Machines Sabotaged . | . . . . . . . . . . . . Overloaded Fab Kills . | . . . . . . . . . . . . Hacking | -11 -10 -10 -10 -9 -8 -7 -6 -6 -6 -6 -6 --------- Run | Jun Mat Min Exi Min Mat Fac Fac Ext Cet Arc Hub Machines Accessed 31 | . 1 1 1 . 3 5 2 14 1 . 3 Terminals 28 | . 1 1 . . 3 3 2 14 1 . 3 Fabricators 1 | . . . . . . 1 . . . . . Repair Stations . | . . . . . . . . . . . . Recycling Units 1 | . . . . . . 1 . . . . . Scanalyzers . | . . . . . . . . . . . . Garrison Access . | . . . . . . . . . . . . Total Hacks 73 | . 3 2 1 . 10 10 4 33 2 . 8 Successful 24 | . 1 1 1 . 4 2 2 11 1 . 1 Failed 49 | . 2 1 . . 6 8 2 22 1 . 7 Catastrophic 11 | . 1 . . . 2 5 . . 1 . 2 Database Lockouts . | . . . . . . . . . . . . Manual 39 | . 3 . 1 . 10 7 2 8 . . 8 Terminals 68 | . 3 2 . . 10 6 4 33 2 . 8 Fabricators 3 | . . . . . . 3 . . . . . Repair Stations . | . . . . . . . . . . . . Recycling Units 1 | . . . . . . 1 . . . . . Scanalyzers . | . . . . . . . . . . . . Garrison Access . | . . . . . . . . . . . . Terminal Hacks 17 | . 1 1 1 . 1 . 1 11 1 . . Open Door 10 | . . . . . . . 1 8 1 . . Level Access Points 1 | . . . . . 1 . . . . . . Branch Access Points 1 | . 1 . . . . . . . . . . Zone Layout 4 | . . 1 . . . . . 3 . . . EX-Prototype ID Bank 1 | . . . 1 . . . . . . . . Fabricator Hacks . | . . . . . . . . . . . . Repair Station Hacks . | . . . . . . . . . . . . Recycling Unit Hacks . | . . . . . . . . . . . . Scanalyzer . | . . . . . . . . . . . . Garrison Access Hacks . | . . . . . . . . . . . . Unauthorized Hacks 7 | . . . . . 3 2 1 . . . 1 Terminals 6 | . . . . . 3 1 1 . . . 1 Botnet 6 | . . . . . 3 1 1 . . . 1 Fabricators . | . . . . . . . . . . . . Repair Stations . | . . . . . . . . . . . . Recycling Units 1 | . . . . . . 1 . . . . . Tunnel 1 | . . . . . . 1 . . . . . Scanalyzers . | . . . . . . . . . . . . Garrison Access . | . . . . . . . . . . . . Data Cores Recovered 1 | . . . . . 1 . . . . . . Used . | . . . . . . . . . . . . Hacking Detections 24 | . 1 1 . . 3 4 1 10 1 . 3 Full Trace Events 12 | . 1 . . . 2 4 . 3 . . 2 Feedback Events 1 | . . . . . . . . 1 . . . Corruption 1 | . . . . . . . . 1 . . . Feedback Blocked . | . . . . . . . . . . . . Robot Schematics Acquired . | . . . . . . . . . . . . Robots Built . | . . . . . . . . . . . . Authchips . | . . . . . . . . . . . . Time . | . . . . . . . . . . . . Total Robot Build Rating . | . . . . . . . . . . . . Part Schematics Acquired . | . . . . . . . . . . . . Parts Built . | . . . . . . . . . . . . Authchips . | . . . . . . . . . . . . Time . | . . . . . . . . . . . . Total Part Build Rating . | . . . . . . . . . . . . Parts Repaired . | . . . . . . . . . . . . Time . | . . . . . . . . . . . . Parts Recycled . | . . . . . . . . . . . . Recycled Matter . | . . . . . . . . . . . . Retrieved Matter . | . . . . . . . . . . . . Retrieved Components . | . . . . . . . . . . . . Parts Scanalyzed . | . . . . . . . . . . . . Part Schematics Acquired . | . . . . . . . . . . . . Parts Damaged . | . . . . . . . . . . . . Bothacking | -11 -10 -10 -10 -9 -8 -7 -6 -6 -6 -6 -6 ------------ Run | Jun Mat Min Exi Min Mat Fac Fac Ext Cet Arc Hub Used RIF Installer . | . . . . . . . . . . . . Robots Hacked . | . . . . . . . . . . . . Non-combat . | . . . . . . . . . . . . Combat . | . . . . . . . . . . . . Robot Hacks Applied . | . . . . . . . . . . . . Relay Couplers Released . | . . . . . . . . . . . . Fabnet Peak Effective % . | . . . . . . . . . . . . Robots Rewired . | . . . . . . . . . . . . Allies Hacked . | . . . . . . . . . . . . Hacks Repelled . | . . . . . . . . . . . . Allies | -11 -10 -10 -10 -9 -8 -7 -6 -6 -6 -6 -6 -------- Run | Jun Mat Min Exi Min Mat Fac Fac Ext Cet Arc Hub Total Allies 7 | . . . . . . . . 7 . . . Largest Group 6 | . . . . . . . . 6 . . . Highest-Rated Group 204 | . . . . . . . . 204 . . . Highest-Rated Ally 39 | . . . . . . . . 39 . . . Total Orders . | . . . . . . . . . . . . Ally Attacks 28 | . . . . . . . . 28 . . . Total Damage 448 | . . . . . . . . 448 . . . Kills 7 | . . . . . . . . 7 . . . Allies Corrupted . | . . . . . . . . . . . . Allies Melted . | . . . . . . . . . . . . Intel | -11 -10 -10 -10 -9 -8 -7 -6 -6 -6 -6 -6 ------- Run | Jun Mat Min Exi Min Mat Fac Fac Ext Cet Arc Hub Robot Analysis Total . | . . . . . . . . . . . . Derelict Logs Recovered 2 | . . 1 . 1 . . . . . . . Drone Launches . | . . . . . . . . . . . . Drone Recoveries . | . . . . . . . . . . . . Exploration | -11 -10 -10 -10 -9 -8 -7 -6 -6 -6 -6 -6 ------------- Run | Jun Mat Min Exi Min Mat Fac Fac Ext Cet Arc Hub Turns Passed 1479 | 16 49 253 136 99 85 356 113 219 49 23 81 Spaces Moved 2724 | 25 91 400 228 100 155 664 249 452 149 53 158 Core 1033 | 25 91 400 228 100 . . . . . 31 158 Treads . | . . . . . . . . . . . . Legs . | . . . . . . . . . . . . Wheels . | . . . . . . . . . . . . Hover . | . . . . . . . . . . . . Flight 1691 | . . . . . 155 664 249 452 149 22 . Fastest Speed 23 | 50 50 50 50 100 50 39 39 23 23 35 50 Average Speed 47 | 50 50 50 56 100 50 45 39 38 27 43 50 Slowest Speed 100 | 50 50 100 100 100 50 50 39 39 35 50 50 Overloaded Moves . | . . . . . . . . . . . . Propulsion Burnouts . | . . . . . . . . . . . . Robots Hopped 41 | . . . . . 6 11 10 8 5 1 . Cave-ins Triggered . | . . . . . . . . . . . . Exploration Rate (%) 40 | 3 21 82 60 43 23 19 12 63 68 74 17 Regions Visited 11 Branch Regions 7 Pre-discovered Areas 1 | . . . . . . 1 . . . . . Known Exits Taken 6 | . 1 . . . 1 . 1 1 1 1 . Unknown Exits Taken 5 | 1 . 1 1 1 . 1 . . . . . Scrap Searched 1 | . . 1 . . . . . . . . . Spaces Dug 17 | . . 11 . . . 6 . . . . . Terrain Destroyed 110 | . . 82 . . 22 6 . . . . . Melee 6 | . . . . . . 6 . . . . . Projectile . | . . . . . . . . . . . . AOE 104 | . . 82 . . 22 . . . . . . Terrain Rammed . | . . . . . . . . . . . . Walls Destroyed . | . . . . . . . . . . . . Machines Disabled . | . . . . . . . . . . . . Actions | -11 -10 -10 -10 -9 -8 -7 -6 -6 -6 -6 -6 --------- Run | Jun Mat Min Exi Min Mat Fac Fac Ext Cet Arc Hub Total 2836 | 26 93 443 236 99 154 692 253 479 151 51 159 Wait 80 | . . 20 . . . 21 13 18 8 . . Move 2638 | 24 90 399 227 99 142 643 230 436 140 50 158 Hop 34 | . . . . . 6 9 8 7 3 1 . Pick Up 18 | . 2 3 2 . 1 6 1 3 . . . Fast Attach 9 | 2 . 1 . . . 4 1 . . . 1 Attach 15 | . . 3 2 . 2 2 . 6 . . . Detach 6 | . . 3 1 . . . . 2 . . . Swap . | . . . . . . . . . . . . Drop 7 | . . . 4 . 1 1 . 1 . . . Fire 11 | . . 9 . . 2 . . . . . . Melee 12 | . . . . . . 6 . 6 . . . Ram 6 | . 1 5 . . . . . . . . . Kick . | . . . . . . . . . . . . Crush . | . . . . . . . . . . . . Escape Stasis . | . . . . . . . . . . . . Rewire . | . . . . . . . . . . . . Trap . | . . . . . . . . . . . . Miscellaneous . | . . . . . . . . . . . . Route ------- -11/Junkyard -10/Materials (discovered 2 exits: *Min x2) -10/Mines (discovered 3 exits: [*Mat x2] / *Exi) -10/Exiles (discovered 2 exits: [*Min x2]) -9/Mines -8/Materials (discovered 3 exits: *Fac x3) -7/Factory (discovered 3 exits: *Fac x2 / [*Low]) -6/Factory -6/Extension (discovered 2 exits: *Fac / *Cet) -6/Cetus (discovered 2 exits: *Fac / *Arc) -6/Archives (discovered 2 exits: *Fac / *Hub) -6/Hub_04(d) (discovered 2 exits: *Fac x2) History --------- Turn | Location | Event 5 | -11/Junkyard | Discovered new exit (range 16) 17 | -11/Junkyard | Entered Materials 33 | -10/Materials | Identified exit to Mines 66 | -10/Materials | Entered Mines 93 | -10/Mines | Discovered new exit (range 10) 126 | -10/Mines | Discovered new exit (range 11) 153 | -10/Mines | Assembled infested the area 166 | -10/Mines | Learned Materials trap positions 265 | -10/Mines | Core integrity fell below 50% 305 | -10/Mines | Build established: Mutant 316 | -10/Mines | Deemed a non-threat by the Exiles lab entrance 317 | -10/Mines | Discovered new exit (range 5) 319 | -10/Mines | Entered Exiles 327 | -10/Exiles | Discovered new exit (range 15) 333 | -10/Exiles | Met 8R-AWN 340 | -10/Exiles | Met EX-HEX 355 | -10/Exiles | Met EX-BIN 361 | -10/Exiles | Aligned with FarCom system 361 | -10/Exiles | Given EX-Vault access code 373 | -10/Exiles | Opened EX-Vault 380 | -10/Exiles | Found Flying Fortress v7 392 | -10/Exiles | Warned to stay clear of 0b10 Research branches 406 | -10/Exiles | Met EX-DEC 442 | -10/Exiles | Discovered new exit (range 15) 455 | -10/Exiles | Left Exiles lab with Flying Fortress v7 455 | -10/Exiles | Entered Mines 464 | -9/Mines | Learned Materials stockpile data 480 | -9/Mines | Received a Rocket Launcher from a helpful Derelict 540 | -9/Mines | Discovered new exit (range 15) 554 | -9/Mines | Entered Materials 554 | -8/Materials | Evolved 4 slots: Power x1, Propulsion x2, Weapon x1 555 | -8/Materials | Loaded intel: 17 trap records 596 | -8/Materials | Identified exit to Factory 639 | -8/Materials | Entered Factory 639 | -7/Factory | Evolved 2 slots: Propulsion x1, Utility x1 655 | -7/Factory | Discovered new exit (range 13) 979 | -7/Factory | Discovered new exit (range 16) 993 | -7/Factory | Discovered new exit (range 6) 995 | -7/Factory | Entered another Factory area 995 | -6/Factory | Evolved 2 slots: Utility x2 1104 | -6/Factory | Discovered new exit (range 10) 1107 | -6/Factory | Identified exit to Extension 1108 | -6/Factory | Entered Extension 1132 | -6/Extension | Rescued a captive Derelict 1135 | -6/Extension | Rescued a captive Derelict 1138 | -6/Extension | Rescued a captive Derelict 1167 | -6/Extension | Rescued a captive Derelict 1168 | -6/Extension | Rescued a captive Derelict 1182 | -6/Extension | Rescued a captive Derelict 1185 | -6/Extension | Rescued a captive Derelict 1233 | -6/Extension | Spotted B-75 Beast 1234 | -6/Extension | Spotted B-75 Beast 1249 | -6/Extension | Rescued a captive Derelict 1252 | -6/Extension | Rescued a captive Derelict 1296 | -6/Extension | Rescued a captive Derelict 1303 | -6/Extension | Rescued a captive Derelict 1307 | -6/Extension | Rescued a captive Derelict 1325 | -6/Extension | Discovered new exit (range 10) 1325 | -6/Extension | Discovered new exit (range 6) 1326 | -6/Extension | Identified exit to Cetus 1327 | -6/Extension | Entered Cetus 1331 | -6/Cetus | Spotted Cetus Guard 1331 | -6/Cetus | Spotted Cetus Guard 1331 | -6/Cetus | Spotted Cetus Guard 1331 | -6/Cetus | Spotted Cetus Guard 1353 | -6/Cetus | Discovered new exit (range 15) 1358 | -6/Cetus | Spotted Cetus Guard 1358 | -6/Cetus | Spotted Cetus Guard 1358 | -6/Cetus | Spotted Cetus Guard 1358 | -6/Cetus | Spotted Cetus Guard 1359 | -6/Cetus | Discovered new exit (range 15) 1376 | -6/Cetus | Identified exit to Archives 1376 | -6/Cetus | Entered Archives 1386 | -6/Archives | Unable to access archive contents 1388 | -6/Archives | Discovered new exit (range 16) 1392 | -6/Archives | Discovered new exit (range 15) 1393 | -6/Archives | Core integrity fell below 50% 1398 | -6/Archives | Identified exit to Hub_04(d) 1399 | -6/Archives | Entered Hub_04(d) 1416 | -6/Hub_04(d) | Discovered new exit (range 12) 1418 | -6/Hub_04(d) | Lost 8 parts (1p6n1u) 1452 | -6/Hub_04(d) | Discovered new exit (range 14) 1462 | -6/Hub_04(d) | Identified exit to Factory 1464 | -6/Hub_04(d) | Core integrity fell below 20% 1480 | -6/Hub_04(d) | Destroyed by H-61 Shepherd with Heavy Assault Cannon Last Messages --------------- 01430_ K-01 Serf collects debris. 01435_ ALERT: Hostiles spotted, dispatching reinforcements to Terminal H012. 01435_ Connecting with Terminal... 01435_ ALERT: Suspicious activity at Terminal H004. Dispatching Investigation squad. 01450_ Connecting with Terminal... >>Trojan(Botnet) Trojan loaded successfully. Testing... Terminal linked with 0 systems. Awaiting botnet instructions. 01452_ EXIT=FOUND 01454_ Knocked back. 01462_ EXIT=IDENTIFIED: FACTORY 01471_ Acquired Gravmag Array. 01477_ Knocked back. 01478_ Acquired 2 matter. 01478_ U-05 Engineer builds a Wall. 01480_ Penetrated by Slug. Map ----- +----------------------------------------------------+ | | | | | | | | | | | | | | | | | | | | | | | | | | | | | | | | | | | | | | | | | | | ???????????????????????????????????#######????? | | ??????????########################## ###### | | ???????? | | ???????????????# % H < | | ???????????????# @ %u | | ???????????????### ###########+##### % ""##+# | | ?????????????????????????# ####### | | ?????????????????????????# #?????# """ | | ?????????????????????????# """" #?????# """ | | ?????????????????????????# """" #?????# """ | | ?????????????????????????# """" #?????# """ | | ?????????????????????????# """" #?????#* | | ?????????????????????????# #?????# """ | | ?????????????????????????# #?????# """ | | ?????????????????????????###########?????# """ | | ?????????????????????????????????????????# """ | | ?????????????????????????????????????????# ? | | ?????????????????????????????????????????#####? | | ??????????????????????????????????????????????? | | ??????????????????????????????????????????????? | | ??????????????????????????????????????????????? | | ??????????????????????????????????????????????? | | ??????????????????????????????????????????????? | | ??????????????????????????????????????????????? | | ??????????????????????????????????????????????? | | ??????????????????????????????????????????????? | | ??????????????????????????????????????????????? | | ??????????????????????????????????????????????? | | ??????????????????????????????????????????????? | +----------------------------------------------------+ Best States ------------- Heat Dissipation 37 Energy Generation 14 Energy Capacity 275 Matter Stores 300 Matter Capacity 300 Sight Range 16 Terrain Scan Density 10 Armor Coverage 150 Propulsion Shielding 33 Evasion (%) 65 Offensive Hacking 10 Item Schematics ----------------- None Robot Schematics ------------------ None Fabricated ------------ Nothing Alien Tech Used ----------------- None Achievements -------------- None Challenges ------------ None Game ------ Seed SubatomicGrapheneMallet Manual? 0 Play Time 00:21:53 Cumulative 174.0 hours Start 2023.05.05 @ 00:43:29 End 2023.05.05 @ 01:04:21 Sessions 1 Manual Loads 0 Difficulty Rogue Special Mode None Game No. 516 Rogue 516 Adventurer 0 Explorer 0 Win Type - Total 8 Types 7/0/0/1/0/0/0/0/0 Lore% 70 Gallery% 74 Achievement% 65 Wizard Run 0 Options --------- ASCII 0 Keyboard 0 Movement Numpad Keybinds 0 Fullscreen 1 Font 16/SmallcapsGlow Map View 75x55 Tactical HUD 1 Map Filters NONE Filters NONE Steam 1 RUN: 40291110-c5e0-41ed-a19f-c26256246426